bitfinex/quotes_BTCUSD_20241223
["timestamp","ask_amount","ask_price","bid_price","bid_amount"]
[1734937036206,0.07795411,94831.0,94830.0,8.55e-05]
[1734937036632,0.35226251,94831.0,94830.0,8.55e-05]
[1734937036820,0.4001084,94831.0,94830.0,8.55e-05]
[1734937037173,0.4021084,94831.0,94830.0,8.55e-05]
[1734937037397,0.49596771,94831.0,94830.0,8.55e-05]
[1734937037606,0.49996771,94831.0,94830.0,8.55e-05]
[1734937037804,0.49596771,94831.0,94830.0,8.55e-05]
[1734937038010,0.4061084,94831.0,94830.0,8.55e-05]
[1734937038220,0.78388927,94831.0,94830.0,8.55e-05]
[1734937038471,0.210925,94820.0,94814.0,8.55e-05]
[1734937038671,0.5400334,94820.0,94814.0,8.55e-05]
[1734937039491,0.5630334,94820.0,94814.0,8.55e-05]
[1734937040206,0.6119334,94820.0,94814.0,8.55e-05]
[1734937040545,0.6149334,94820.0,94814.0,8.55e-05]
[1734937040722,0.6239334,94820.0,94819.0,0.0010856]
[1734937041142,0.6239334,94820.0,94819.0,8.56e-05]
[1734937041412,0.6329334,94820.0,94819.0,0.0010856]
[1734937041616,0.6299334,94820.0,94819.0,0.0010856]
[1734937042032,0.6329334,94820.0,94819.0,0.0010856]
[1734937042244,0.1477,94820.0,94819.0,0.0010856]
[1734937042450,0.0988,94820.0,94819.0,0.0010856]
[1734937042833,0.1094859,94820.0,94819.0,0.0010856]
[1734937043281,0.018,94820.0,94819.0,0.0010856]
[1734937043685,0.009,94820.0,94819.0,0.0010856]
[1734937043880,0.01075063,94831.0,94820.0,0.210925]
[1734937044269,0.01075063,94831.0,94820.0,0.42185]
[1734937044490,0.0001187,94831.0,94826.0,0.210912]
[1734937044663,0.0001187,94831.0,94827.0,0.00105455]
[1734937044870,0.0001187,94831.0,94828.0,0.210908]
[1734937045826,0.0011187,94831.0,94828.0,0.210908]
[1734937046177,0.0001187,94831.0,94828.0,0.210908]
[1734937046383,0.0001187,94831.0,94830.0,0.210903]
[1734937046606,0.0001187,94831.0,94830.0,0.3122114]
[1734937046825,0.0061187,94831.0,94830.0,0.3122114]
[1734937047176,0.0001187,94831.0,94830.0,0.3122114]
[1734937047558,0.0031187,94831.0,94830.0,0.3122114]
[1734937047763,0.0032899,94831.0,94830.0,0.3122114]
[1734937048031,0.0032899,94831.0,94830.0,0.3162114]
[1734937048248,0.0032899,94831.0,94830.0,0.3122114]
[1734937048249,0.0002899,94831.0,94830.0,0.3122114]
[1734937048635,0.0012899,94831.0,94830.0,0.3182114]
[1734937048836,0.0012899,94831.0,94830.0,0.3222114]
[1734937049811,0.0002899,94831.0,94830.0,0.3162114]
[1734937050012,0.0012899,94831.0,94830.0,0.3222114]
[1734937050419,0.0002899,94831.0,94830.0,0.3162114]
[1734937050603,0.0012899,94831.0,94830.0,0.3222114]
[1734937050803,0.0012899,94831.0,94830.0,0.3182114]
[1734937051004,0.0002899,94831.0,94830.0,0.3122114]
[1734937051320,0.0012899,94831.0,94830.0,0.3222114]
[1734937051702,0.0012899,94831.0,94830.0,0.3182114]
[1734937051920,0.0012899,94831.0,94830.0,0.3222114]
[1734937052973,0.0022899,94831.0,94830.0,0.3282114]
[1734937053346,0.0022899,94831.0,94830.0,0.3162114]
[1734937053347,0.0012899,94831.0,94830.0,0.3162114]
[1734937053552,0.0022899,94831.0,94830.0,0.3222114]
[1734937053750,0.0022899,94831.0,94830.0,0.3182114]
[1734937054072,0.0022899,94831.0,94830.0,0.3222114]
[1734937056371,0.0002899,94831.0,94830.0,0.3162114]
[1734937056897,0.0002899,94831.0,94830.0,0.3122114]
[1734937057254,0.0012899,94831.0,94830.0,0.3192114]
[1734937057703,0.0012899,94831.0,94830.0,0.3232114]
[1734937057880,0.0002899,94831.0,94830.0,0.3162114]
[1734937058098,0.0012899,94831.0,94830.0,0.3222114]
[1734937059470,0.0002899,94831.0,94830.0,0.316297]
[1734937060030,0.0012899,94831.0,94830.0,0.323297]
[1734937060409,0.0012899,94831.0,94830.0,0.312297]
[1734937060605,0.0012899,94831.0,94830.0,0.322297]
[1734937060854,0.0022899,94831.0,94830.0,0.322297]
[1734937061007,0.0002899,94831.0,94830.0,0.312297]
[1734937061209,0.0002899,94831.0,94830.0,0.319297]
[1734937061413,0.0012899,94831.0,94830.0,0.323297]
[1734937062092,0.0012899,94831.0,94830.0,0.319297]
[1734937062294,0.0012899,94831.0,94830.0,0.323297]
[1734937062429,0.0002899,94831.0,94830.0,0.316297]
[1734937063007,0.0012899,94831.0,94830.0,0.322297]
[1734937063220,0.0002899,94831.0,94830.0,0.316297]
[1734937063436,0.0012899,94831.0,94830.0,0.323297]
[1734937063668,0.0002899,94831.0,94830.0,0.316297]
[1734937064078,0.0012899,94831.0,94830.0,0.318297]
[1734937064258,0.0012899,94831.0,94830.0,0.312297]
[1734937064462,0.0022899,94831.0,94830.0,0.323297]
[1734937064907,0.0022899,94831.0,94830.0,0.469297]
[1734937065113,0.0022899,94831.0,94830.0,0.545597]
[1734937065323,0.0022899,94831.0,94830.0,0.550597]
[1734937065935,9e-07,94831.0,94830.0,0.643597]
[1734937066174,9e-07,94831.0,94830.0,0.694997]
[1734937066360,9e-07,94831.0,94830.0,0.817997]
[1734937066636,9e-07,94831.0,94830.0,0.807997]
[1734937066815,9e-07,94831.0,94830.0,0.815997]
[1734937067026,0.0001712,94866.0,94830.0,0.815997]
[1734937067027,0.0001712,94866.0,94856.0,0.1282562]
[1734937067195,0.00070802,94866.0,94865.0,0.210825]
[1734937069221,0.00170802,94866.0,94865.0,0.210825]
[1734937069633,0.00170802,94866.0,94865.0,0.3121334]
[1734937070296,0.00170802,94866.0,94865.0,0.4621334]
[1734937070481,0.00070802,94866.0,94865.0,0.5621334]
[1734937071857,0.00070802,94866.0,94865.0,0.6621334]
[1734937072269,0.00170802,94866.0,94865.0,0.6711334]
[1734937072685,0.00070802,94866.0,94865.0,0.6621334]
[1734937072887,0.00070802,94866.0,94865.0,0.4711334]
[1734937073123,0.00070802,94866.0,94865.0,0.5751334]
[1734937073568,0.00070802,94866.0,94865.0,0.5711334]
[1734937073773,0.00070802,94866.0,94865.0,0.4661334]
[1734937074232,0.00070802,94866.0,94865.0,0.4621334]
[1734937074645,0.00070802,94866.0,94865.0,0.4661334]
[1734937075262,0.00170802,94866.0,94865.0,0.4751334]
[1734937075438,0.00170802,94866.0,94865.0,0.4661334]
[1734937075846,0.00270802,94866.0,94865.0,0.4711334]
[1734937076229,0.00270802,94866.0,94865.0,0.4761334]
[1734937076627,0.00270802,94866.0,94865.0,0.4671334]
[1734937076628,0.00070802,94866.0,94865.0,0.4671334]
[1734937076835,0.00170802,94866.0,94865.0,0.4761334]
[1734937077382,0.00170802,94866.0,94865.0,0.4711334]
[1734937077535,0.00170802,94866.0,94865.0,0.4761334]
[1734937078129,0.00170802,94866.0,94865.0,0.224825]
[1734937078491,0.00070802,94866.0,94865.0,0.215825]
[1734937078678,0.00070802,94866.0,94865.0,0.224825]
[1734937078883,0.00170802,94866.0,94865.0,0.224825]
[1734937079087,0.00170802,94866.0,94865.0,0.219825]
[1734937079350,0.00170802,94866.0,94865.0,0.3261334]
[1734937079527,0.00170802,94866.0,94865.0,0.3171334]
[1734937079528,0.00070802,94866.0,94865.0,0.3171334]
[1734937079682,0.00070802,94866.0,94865.0,0.3121334]
[1734937079884,0.00070802,94866.0,94865.0,0.3151334]
[1734937080133,0.00070802,94866.0,94865.0,0.3171334]
[1734937080457,0.00070802,94866.0,94865.0,0.3181334]
[1734937080860,0.00070802,94866.0,94865.0,0.3211334]
[1734937081017,0.00070802,94866.0,94865.0,0.009]
[1734937081923,0.00070802,94866.0,94864.0,0.210827]
[1734937082121,0.00170802,94866.0,94865.0,0.007]
[1734937082497,0.00170802,94866.0,94865.0,0.011]
[1734937082930,0.00070802,94866.0,94865.0,0.006]
[1734937083369,0.00070802,94866.0,94865.0,0.004]
[1734937083550,0.00070802,94866.0,94865.0,0.006]
[1734937084759,0.12300802,94866.0,94865.0,0.006]
[1734937084927,0.12300802,94866.0,94865.0,0.002]
[1734937085297,0.12300802,94866.0,94865.0,0.003]
[1734937085417,0.12300802,94866.0,94865.0,0.005]
[1734937085671,0.12300802,94866.0,94865.0,0.002]
[1734937085879,0.12400802,94866.0,94857.0,0.0010541]
[1734937086121,0.12400802,94866.0,94858.0,0.3121494]
[1734937086665,0.12300802,94866.0,94858.0,0.3121494]
[1734937087069,0.12400802,94866.0,94858.0,0.3121494]
[1734937087340,0.00105411,94865.0,94848.0,0.210862]
[1734937087498,0.210829,94864.0,94849.0,0.00105419]
[1734937087715,0.00105411,94863.0,94849.0,0.00105419]
[1734937087909,0.13460651,94866.0,94851.0,0.210857]
[1734937088106,0.12300802,94866.0,94863.0,0.421658]
[1734937088432,0.12400802,94866.0,94863.0,0.421658]
[1734937088634,0.12400802,94866.0,94863.0,0.210828]
[1734937088635,0.12300802,94866.0,94863.0,0.210828]
[1734937089021,0.12400802,94866.0,94863.0,0.210828]
[1734937089424,0.12400802,94866.0,94859.0,0.210837]
[1734937089591,0.00105411,94865.0,94863.0,0.003]
[1734937089843,0.210825,94865.0,94863.0,0.003]
[1734937090029,0.12300802,94866.0,94853.0,0.421702]
[1734937090251,0.12400802,94866.0,94855.0,0.210848]
[1734937090458,0.210825,94865.0,94853.0,0.3121584]
[1734937090667,0.00105411,94864.0,94851.0,0.210856]
[1734937091845,0.21083,94863.0,94845.0,0.21087]
[1734937092049,0.0771,94859.0,94846.0,0.1013084]
[1734937092254,0.00105411,94858.0,94840.0,0.210881]
[1734937092455,0.210847,94856.0,94842.0,0.210877]
[1734937092653,0.0771,94859.0,94843.0,0.10236265]
[1734937092906,0.00105411,94858.0,94843.0,0.10236265]
[1734937093334,0.00105411,94858.0,94846.0,0.210868]
[1734937093550,0.0771,94859.0,94854.0,0.210849]
[1734937093843,0.0771,94859.0,94856.0,0.210845]
[1734937094042,0.0771,94859.0,94857.0,0.1013084]
[1734937095315,0.0771,94859.0,94858.0,0.210841]
[1734937095515,0.0771,94859.0,94858.0,0.3121494]
[1734937096164,0.0771,94859.0,94857.0,0.001]
[1734937096569,0.0771,94859.0,94854.0,0.210848]
[1734937096826,0.0771,94859.0,94858.0,0.002]
[1734937097229,0.0771,94859.0,94858.0,0.001]
[1734937098673,0.0771,94859.0,94857.0,0.001]
[1734937098872,0.0771,94859.0,94850.0,0.421718]
[1734937099070,0.0771,94859.0,94857.0,0.001]
[1734937099293,0.0771,94859.0,94858.0,0.001]
[1734937100484,0.0771,94859.0,94857.0,0.001]
[1734937100729,0.0771,94859.0,94858.0,0.002]
[1734937102590,0.0771,94859.0,94858.0,0.001]
[1734937103674,0.0771,94859.0,94858.0,0.002]
[1734937104728,0.0001,97169.0,94879.0,0.1]
[1734937104729,0.21839602,94891.0,94879.0,0.1]
[1734937104925,0.315713,94900.0,94899.0,0.25]
[1734937105128,0.315713,94900.0,94899.0,0.4743084]
[1734937105333,0.315713,94900.0,94899.0,0.5788705]
[1734937105751,0.315713,94900.0,94899.0,0.4743084]
[1734937106151,0.00011887,94915.0,94901.0,0.15]
[1734937106261,0.00011887,94915.0,94902.0,0.10236185]
[1734937106463,0.00011887,94915.0,94908.0,0.421458]
[1734937106687,0.00011887,94915.0,94910.0,0.210725]
[1734937106889,0.00011887,94915.0,94910.0,0.42145]
[1734937107811,0.00011887,94915.0,94910.0,0.210725]
[1734937108664,0.00011887,94915.0,94910.0,0.421449]
[1734937109050,0.00011887,94915.0,94910.0,0.210724]
[1734937109254,0.00011887,94915.0,94910.0,0.212724]
[1734937109454,0.00011887,94915.0,94910.0,0.426449]
[1734937109672,0.00011887,94915.0,94910.0,0.421449]
[1734937110078,0.00011887,94915.0,94910.0,0.424449]
[1734937110456,0.00011887,94915.0,94910.0,0.423449]
[1734937110658,0.00011887,94915.0,94910.0,0.212724]
[1734937110889,0.00011887,94915.0,94910.0,0.213724]
[1734937112062,0.00011887,94915.0,94910.0,0.212724]
[1734937112273,0.00011887,94915.0,94910.0,0.211724]
[1734937112772,0.00011887,94915.0,94910.0,0.210724]
[1734937112977,0.00011887,94915.0,94910.0,0.211724]
[1734937113178,0.00011887,94915.0,94910.0,0.423449]
[1734937113375,0.00011887,94915.0,94910.0,0.424449]
[1734937113583,0.00011887,94915.0,94910.0,0.213724]
[1734937113976,0.00011887,94915.0,94910.0,0.212724]
[1734937114207,0.00011887,94915.0,94910.0,0.210724]
[1734937114823,0.00011887,94915.0,94910.0,0.421449]
[1734937115028,0.00011887,94915.0,94910.0,0.210724]
[1734937115440,0.00011887,94915.0,94910.0,0.422449]
[1734937115854,0.00011887,94915.0,94910.0,0.421449]
[1734937116205,0.00011887,94915.0,94910.0,0.423449]
[1734937116423,0.00011887,94915.0,94910.0,0.424449]
[1734937116844,0.00011887,94915.0,94910.0,0.425449]
[1734937117043,0.00011887,94915.0,94910.0,0.427449]
[1734937118146,0.00011887,94915.0,94910.0,0.006]
[1734937118285,0.0474,94914.0,94910.0,0.006]
[1734937118468,0.0474,94914.0,94910.0,0.002]
[1734937118872,0.0474,94914.0,94907.0,0.210732]
[1734937119074,0.0474,94914.0,94912.0,0.21072]
[1734937120810,0.0474,94914.0,94912.0,0.21572]
[1734937120970,0.0474,94914.0,94912.0,0.21272]
[1734937121176,0.0474,94914.0,94912.0,0.21572]
[1734937121434,0.0474,94914.0,94912.0,0.002]
[1734937121872,0.0474,94914.0,94909.0,0.210727]
[1734937122221,0.0474,94914.0,94912.0,0.002]
[1734937122624,0.0474,94914.0,94909.0,0.210727]
[1734937123458,0.0474,94914.0,94912.0,0.003]
[1734937124661,0.0474,94914.0,94909.0,0.212727]
[1734937125164,0.0474,94914.0,94912.0,0.003]
[1734937126203,0.3891274,94913.0,94912.0,0.003]
[1734937126406,0.0771,94911.0,94883.0,0.09440977]
[1734937126644,0.421523,94894.0,94883.0,0.09440977]
[1734937126825,0.0771,94893.0,94883.0,0.09440977]
[1734937127033,0.255965,94892.0,94883.0,0.09440977]
[1734937127582,0.255965,94892.0,94866.0,0.210823]
[1734937127806,0.255965,94892.0,94864.0,0.30523677]
[1734937128012,0.5302734,94892.0,94891.0,0.0020855]
[1734937128463,0.52252682,94892.0,94864.0,0.04749525]
[1734937128699,0.210811,94872.0,94864.0,0.04749525]
[1734937128840,0.210814,94870.0,94864.0,0.04749525]
[1734937129042,0.259327,94865.0,94831.0,8.56e-05]
[1734937129220,0.0485,94865.0,94852.0,0.210853]
[1734937129878,0.04864704,94865.0,94852.0,0.210853]
[1734937130443,0.04964704,94865.0,94852.0,0.210853]
[1734937130968,0.05264704,94865.0,94852.0,0.210853]
[1734937131094,0.05264704,94865.0,94848.0,0.1013084]
[1734937131296,0.05264704,94865.0,94849.0,0.00105417]
[1734937131515,0.05264704,94865.0,94850.0,0.1013084]
[1734937131708,0.05164704,94865.0,94850.0,0.1013084]
[1734937131919,0.05264704,94865.0,94850.0,0.1013084]
[1734937132111,0.05264704,94865.0,94861.0,0.421668]
[1734937132320,0.00414704,94865.0,94861.0,0.421668]
[1734937132546,0.00314704,94865.0,94861.0,0.421668]
[1734937132700,0.00114704,94865.0,94861.0,0.421668]
[1734937133061,0.00414704,94865.0,94861.0,0.421668]
[1734937133270,0.00314704,94865.0,94861.0,0.421668]
[1734937135343,0.00314704,94865.0,94861.0,0.210834]
[1734937136357,0.00314704,94865.0,94857.0,0.210843]
[1734937136560,0.00014704,94865.0,94857.0,0.3121514]
[1734937138185,0.00014704,94865.0,94857.0,0.5229944]
[1734937139264,0.00014704,94865.0,94851.0,0.210857]
[1734937139440,0.00014704,94865.0,94853.0,0.210852]
[1734937139645,0.00014704,94865.0,94854.0,0.1013084]
[1734937140775,0.00014704,94865.0,94855.0,0.210848]
[1734937140981,0.00014704,94865.0,94854.0,0.1013084]
[1734937141334,0.00014704,94865.0,94855.0,0.210848]
[1734937141919,0.210828,94864.0,94849.0,0.210859]
[1734937142125,0.210828,94864.0,94842.0,0.210876]
[1734937142126,0.00014704,94865.0,94844.0,0.210872]
[1734937142354,0.21083,94863.0,94857.0,8.55e-05]
[1734937142738,0.21083,94863.0,94851.0,0.21066115]
[1734937143072,0.21083,94863.0,94846.0,0.210868]
[1734937143275,0.210842,94858.0,94842.0,0.210875]
[1734937143507,0.210842,94858.0,94843.0,0.1013084]
[1734937143834,0.0827,94858.0,94837.0,0.210886]
[1734937144037,0.0827,94858.0,94838.0,0.1013084]
[1734937144239,0.0827,94858.0,94830.0,8.56e-05]
[1734937144240,0.0809,94849.0,94830.0,8.56e-05]
[1734937144432,0.210889,94837.0,94830.0,8.56e-05]
[1734937144613,0.210883,94839.0,94830.0,8.56e-05]
[1734937144790,0.210895,94834.0,94830.0,8.56e-05]
[1734937145173,0.210899,94832.0,94830.0,8.56e-05]
[1734937145991,0.210899,94832.0,94831.0,0.00062242]
[1734937146196,0.0816,94833.0,94831.0,0.00062242]
[1734937146763,0.001,94832.0,94831.0,0.00062242]
[1734937147137,0.0816,94833.0,94831.0,0.00062242]
[1734937147342,0.0836,94833.0,94831.0,0.00062242]
[1734937147581,0.0816,94833.0,94831.0,0.00062242]
[1734937147925,0.001,94832.0,94831.0,0.00062242]
[1734937149175,0.0808,94841.0,94832.0,0.210899]
[1734937149453,0.002,94833.0,94831.0,0.00062242]
[1734937150031,0.001,94832.0,94831.0,0.00062242]
[1734937150238,0.0808,94841.0,94831.0,0.00062242]
[1734937150663,0.002,94833.0,94831.0,0.00062242]
[1734937150862,0.0758,94850.0,94834.0,0.210894]
[1734937151064,0.0758,94863.0,94859.0,0.210839]
[1734937151420,0.0758,94863.0,94853.0,0.210852]
[1734937151637,0.08265407,94863.0,94853.0,0.210852]
[1734937153585,0.08865407,94863.0,94853.0,0.210852]
[1734937153922,0.08265407,94863.0,94853.0,0.210852]
[1734937154199,0.0768,94863.0,94858.0,0.210839]
[1734937154739,0.0768,94863.0,94853.0,0.210852]
[1734937154973,0.0768,94863.0,94835.0,0.1013084]
[1734937154974,0.001,94863.0,94859.0,0.210839]
[1734937155268,0.001,94863.0,94859.0,0.421678]
[1734937155427,0.0001712,94865.0,94859.0,0.421678]
[1734937155868,0.001,94863.0,94859.0,0.421678]
[1734937156202,0.0001712,94865.0,94859.0,0.421678]
[1734937156607,0.0001712,94865.0,94861.0,0.421668]
[1734937156809,0.0001712,94865.0,94863.0,0.21083]
[1734937156980,0.0001712,94865.0,94863.0,0.3121384]
[1734937157771,0.00031824,94865.0,94863.0,0.3121384]
[1734937157997,0.00031824,94865.0,94864.0,0.10236244]
[1734937158561,0.00231824,94865.0,94864.0,0.10236244]
[1734937158759,0.00231824,94865.0,94864.0,0.1013084]
[1734937158990,0.00031824,94865.0,94864.0,0.1013084]
[1734937159186,0.00031824,94865.0,94864.0,0.1053084]
[1734937159922,0.00031824,94865.0,94864.0,0.004]
[1734937160208,0.07791824,94865.0,94864.0,0.004]
[1734937160418,0.12501824,94865.0,94864.0,0.004]
[1734937160709,0.12501824,94865.0,94864.0,0.002]
[1734937161127,0.12501824,94865.0,94850.0,0.210859]
[1734937161330,0.12501824,94865.0,94864.0,0.002]
[1734937161938,0.12501824,94865.0,94864.0,0.006]
[1734937162139,0.12501824,94865.0,94864.0,0.002]
[1734937162709,0.12501824,94865.0,94864.0,0.004]
[1734937163339,0.1316231,94865.0,94864.0,0.004]
[1734937163549,0.1316231,94865.0,94850.0,0.141859]
[1734937163759,0.1316231,94865.0,94864.0,0.002]
[1734937164572,0.210845,94857.0,94845.0,8.56e-05]
[1734937165104,0.210855,94852.0,94845.0,8.56e-05]
[1734937165967,0.210855,94852.0,94850.0,0.002]
[1734937166585,0.210839,94859.0,94850.0,0.002]
[1734937166797,0.3121364,94864.0,94850.0,0.002]
[1734937166798,0.210828,94864.0,94850.0,0.002]
[1734937166988,0.002,94852.0,94850.0,0.210858]
[1734937168160,0.210828,94864.0,94850.0,0.210858]
[1734937168387,0.002,94852.0,94850.0,0.210858]
[1734937168853,0.1316231,94865.0,94856.0,0.210845]
[1734937169245,0.002,94864.0,94856.0,0.210845]
[1734937169603,0.0845231,94865.0,94856.0,0.210845]
[1734937170043,0.0895231,94865.0,94856.0,0.210845]
[1734937170723,0.002,94864.0,94856.0,0.210845]
[1734937171526,0.007,94864.0,94856.0,0.210845]
[1734937172185,0.008,94864.0,94856.0,0.210845]
[1734937172403,0.003,94864.0,94856.0,0.210845]
[1734937172545,0.003,94864.0,94861.0,0.210834]
[1734937172761,0.005,94864.0,94861.0,0.210834]
[1734937173033,0.002,94864.0,94861.0,0.210834]
[1734937173332,0.004,94864.0,94854.0,0.4217]
[1734937173613,0.004,94864.0,94859.0,0.210837]
[1734937174490,0.0845231,94865.0,94859.0,0.210837]
[1734937174888,0.002,94864.0,94859.0,0.421675]
[1734937175119,0.0845231,94865.0,94859.0,0.421675]
[1734937175486,0.002,94864.0,94859.0,0.210837]
[1734937176154,0.004,94864.0,94859.0,0.210837]
[1734937176405,0.002,94864.0,94859.0,0.210837]
[1734937176631,0.004,94864.0,94859.0,0.210837]
[1734937178318,0.0845231,94865.0,94859.0,0.210837]
[1734937178451,0.00031824,94865.0,94864.0,0.210828]
[1734937179647,0.00031824,94865.0,94864.0,0.211828]
[1734937179888,0.00031824,94865.0,94864.0,0.212828]
[1734937180731,0.00031824,94865.0,94864.0,0.211828]
[1734937181143,0.00031824,94865.0,94864.0,0.001]
[1734937181883,0.00031824,94865.0,94864.0,0.002]
[1734937182470,0.00031824,94865.0,94864.0,0.001]
[1734937182848,0.210828,94864.0,94850.0,8.56e-05]
[1734937183068,0.421656,94864.0,94850.0,8.56e-05]
[1734937183268,0.210832,94862.0,94850.0,8.56e-05]
[1734937183875,0.0457,94851.0,94850.0,8.56e-05]
[1734937184086,0.1284,94851.0,94850.0,8.56e-05]
[1734937185133,0.1284,94851.0,94850.0,0.0020856]
[1734937185337,0.1284,94851.0,94850.0,0.0040856]
[1734937185562,0.1284,94851.0,94850.0,0.0020856]
[1734937186010,0.1284,94851.0,94850.0,0.0010856]
[1734937186301,0.13598366,94851.0,94850.0,0.0010856]
[1734937186500,0.13798366,94851.0,94850.0,8.56e-05]
[1734937187720,0.13598366,94851.0,94850.0,8.56e-05]
[1734937188224,0.13698366,94851.0,94850.0,8.56e-05]
[1734937188343,0.0837,94851.0,94850.0,8.56e-05]
[1734937188543,0.0847,94851.0,94850.0,8.56e-05]
[1734937188802,0.0827,94851.0,94850.0,8.56e-05]
[1734937189176,0.0837,94851.0,94850.0,8.56e-05]
[1734937189625,0.0847,94851.0,94850.0,8.56e-05]
[1734937189985,0.0837,94851.0,94850.0,8.56e-05]
[1734937191064,0.0827,94851.0,94850.0,8.56e-05]
[1734937191311,0.0847,94851.0,94850.0,8.56e-05]
[1734937191722,0.002,94851.0,94850.0,8.56e-05]
[1734937191857,0.003,94851.0,94850.0,8.56e-05]
[1734937193862,0.0031712,94851.0,94850.0,8.56e-05]
[1734937194109,0.0001712,94851.0,94850.0,8.56e-05]
[1734937194482,0.0011712,94851.0,94850.0,8.56e-05]
[1734937194686,0.0001712,94851.0,94850.0,8.56e-05]
[1734937196658,0.0001712,94851.0,94850.0,0.0010856]
[1734937200907,0.0001712,94851.0,94850.0,0.10244823]
[1734937201118,0.0001712,94851.0,94850.0,0.33154815]
[1734937201333,0.0001712,94851.0,94850.0,0.453494]
[1734937201518,0.0001712,94851.0,94850.0,0.451494]
[1734937201878,0.0001712,94851.0,94850.0,0.453494]
[1734937202327,0.0011712,94851.0,94850.0,0.339494]
[1734937202618,0.0011712,94851.0,94850.0,0.439494]
[1734937202804,0.0011712,94851.0,94850.0,0.61091785]
[1734937203013,0.0011712,94851.0,94850.0,0.6189666]
[1734937203479,0.0011712,94851.0,94850.0,0.46091785]
[1734937203648,0.0011712,94851.0,94850.0,0.60293787]
[1734937204531,0.0011712,94851.0,94850.0,0.111394]
[1734937204735,0.0011712,94851.0,94850.0,0.11744799]
[1734937205574,0.0011712,94851.0,94850.0,0.45680802]
[1734937205747,0.0011712,94851.0,94850.0,0.45575403]
[1734937206779,0.0011712,94851.0,94850.0,0.6159498]
[1734937208984,2e-07,94851.0,94850.0,0.9427498]
[1734937209594,2e-07,94851.0,94850.0,1.09811145]
[1734937209999,0.00031824,94865.0,94864.0,0.641228]
[1734937210231,0.00031824,94865.0,94864.0,0.7425364]
[1734937211374,0.00031824,94865.0,94864.0,0.7515364]
[1734937211508,0.00031824,94865.0,94864.0,0.9010922]
[1734937211712,0.00031824,94865.0,94864.0,0.8266922]
[1734937212158,0.00031824,94865.0,94864.0,0.81963067]
[1734937212533,0.00031824,94865.0,94864.0,0.82463067]
[1734937212736,0.00031824,94865.0,94864.0,0.47507487]
[1734937213087,0.00031824,94865.0,94864.0,0.57507487]
[1734937213638,0.00031824,94865.0,94864.0,0.58407487]
[1734937213835,0.00031824,94865.0,94864.0,0.66965598]
[1734937214249,0.00031824,94865.0,94864.0,0.67865598]
[1734937214453,0.00031824,94865.0,94864.0,0.76465598]
[1734937214891,0.00031824,94865.0,94864.0,0.68407487]
[1734937215092,0.00031824,94865.0,94864.0,0.67507487]
[1734937215427,0.00031824,94865.0,94864.0,0.67907487]
[1734937215594,0.00031824,94865.0,94864.0,0.68507487]
[1734937216665,2.4e-07,94865.0,94864.0,0.76007487]
[1734937216896,2.4e-07,94865.0,94864.0,0.75407487]
[1734937217097,2.4e-07,94865.0,94864.0,0.78207487]
[1734937217302,2.4e-07,94865.0,94864.0,0.77307487]
[1734937217519,2.4e-07,94865.0,94864.0,0.76807487]
[1734937217694,0.0785,94897.0,94896.0,0.210757]
[1734937217907,0.0785,94897.0,94896.0,0.2513084]
[1734937217908,7.917e-05,94897.0,94896.0,0.2513084]
[1734937218568,3.917e-05,94897.0,94896.0,0.2513084]
[1734937218915,3.917e-05,94897.0,94896.0,0.2543084]
[1734937219126,3.917e-05,94897.0,94896.0,0.2513084]
[1734937219668,3.917e-05,94897.0,94896.0,0.4620654]
[1734937220072,3.917e-05,94897.0,94896.0,0.4640654]
[1734937220481,3.917e-05,94897.0,94896.0,0.4620654]
[1734937220683,3.917e-05,94897.0,94896.0,0.4680654]
[1734937220819,3.917e-05,94897.0,94896.0,0.4710654]
[1734937221904,3.917e-05,94897.0,94896.0,0.4650654]
[1734937222105,3.917e-05,94897.0,94896.0,0.4720654]
[1734937222395,3.917e-05,94897.0,94896.0,0.5800894]
[1734937223135,3.917e-05,94897.0,94896.0,0.5770894]
[1734937223336,3.917e-05,94897.0,94896.0,0.5810894]
[1734937223512,3.917e-05,94897.0,94896.0,0.5740894]
[1734937223939,3.917e-05,94897.0,94896.0,0.5790894]
[1734937224142,3.917e-05,94897.0,94896.0,0.4830894]
[1734937224512,3.917e-05,94897.0,94896.0,0.4700894]
[1734937224716,3.917e-05,94897.0,94896.0,0.4620654]
[1734937225078,0.08253917,94897.0,94896.0,0.4670654]
[1734937225480,0.08253917,94897.0,94896.0,0.3260654]
[1734937225944,0.08253917,94897.0,94896.0,0.014]
[1734937226380,0.08253917,94897.0,94896.0,0.009]
[1734937226595,0.08253917,94897.0,94896.0,0.013]
[1734937226814,0.08253917,94897.0,94896.0,0.214757]
[1734937227016,0.08253917,94897.0,94896.0,0.210757]
[1734937227425,0.08253917,94897.0,94896.0,0.001]
[1734937227834,0.08253917,94897.0,94896.0,0.009]
[1734937228252,0.08253917,94897.0,94896.0,0.01]
[1734937228463,0.08253917,94897.0,94896.0,0.001]
[1734937228887,0.08353917,94897.0,94896.0,0.001]
[1734937229551,0.08353917,94897.0,94894.0,0.421521]
[1734937229757,0.08353917,94897.0,94894.0,0.1013084]
[1734937229966,0.08353917,94897.0,94883.0,0.210784]
[1734937229967,0.29429517,94897.0,94883.0,0.210784]
[1734937230188,0.29329517,94897.0,94884.0,0.1013084]
[1734937230434,0.29429517,94897.0,94884.0,0.1013084]
[1734937230640,0.210767,94892.0,94874.0,0.210805]
[1734937230843,0.0819,94891.0,94870.0,0.210814]
[1734937231045,0.0819,94882.0,94871.0,0.1013084]
[1734937231220,0.21079,94881.0,94871.0,0.1013084]
[1734937231821,0.0819,94882.0,94871.0,0.1013084]
[1734937232210,0.0819,94882.0,94872.0,0.21081]
[1734937232411,0.0819,94882.0,94872.0,0.3121184]
[1734937233742,0.0829,94882.0,94872.0,0.3121184]
[1734937234584,0.0819,94882.0,94872.0,0.3121184]
[1734937235006,0.0829,94882.0,94872.0,0.3121184]
[1734937235927,0.21079,94881.0,94864.0,0.210827]
[1734937236246,0.21079,94881.0,94866.0,0.1013084]
[1734937236449,0.21079,94881.0,94867.0,0.210821]
[1734937236654,0.0829,94882.0,94868.0,0.1013084]
[1734937236901,0.0829,94882.0,94868.0,0.10236238]
[1734937237103,0.001,94881.0,94874.0,0.210804]
[1734937237239,0.0819,94882.0,94874.0,0.210804]
[1734937237659,0.001,94881.0,94874.0,0.210804]
[1734937237858,0.0819,94882.0,94874.0,0.210804]
[1734937238056,0.0829,94882.0,94874.0,0.210804]